[Event "Late-Titled-Tuesday-Blitz-March-05-2024"]
[Site "Chess.com"]
[Date "2024.03.05"]
[Round "1"]
[White "Kiborg95"]
[Black "GilbertoHernandezAmura"]
[Result "1-0"]
[WhiteElo "2785"]
[BlackElo "2453"]
[TimeControl "180+1"]
[EndTime "14:08:18 PST"]
[Termination "Kiborg95 won by resignation"]

1. e4 {[%clk 0:02:58.1]} 1... c6 {[%clk 0:02:58.6]} 2. d4 {[%clk 0:02:57.3]}
2... d5 {[%clk 0:02:59]} 3. e5 {[%clk 0:02:58.1]} 3... Bf5 {[%clk 0:02:53.7]} 4.
h4 {[%clk 0:02:57.9]} 4... h5 {[%clk 0:02:52.6]} 5. c4 {[%clk 0:02:58.5]} 5...
e6 {[%clk 0:02:50.4]} 6. Nc3 {[%clk 0:02:59.1]} 6... dxc4 {[%clk 0:02:46.1]} 7.
Bxc4 {[%clk 0:03:00]} 7... Nd7 {[%clk 0:02:46.4]} 8. Nge2 {[%clk 0:03:00.3]}
8... Nb6 {[%clk 0:02:42.1]} 9. Bb3 {[%clk 0:02:59.2]} 9... Be7 {[%clk
0:02:29.7]} 10. Ng3 {[%clk 0:02:59.2]} 10... Bg4 {[%clk 0:02:22.6]} 11. Qd3
{[%clk 0:02:38.9]} 11... Bxh4 {[%clk 0:02:17.1]} 12. Nce4 {[%clk 0:02:37.3]}
12... Nc8 {[%clk 0:02:06.1]} 13. Bd2 {[%clk 0:02:24.1]} 13... Nh6 {[%clk
0:01:58.8]} 14. Bxh6 {[%clk 0:02:07.7]} 14... Rxh6 {[%clk 0:01:58.2]} 15. Kf1
{[%clk 0:02:00.5]} 15... Be7 {[%clk 0:01:47.1]} 16. f3 {[%clk 0:01:59.8]} 16...
Bf5 {[%clk 0:01:46.9]} 17. Nxf5 {[%clk 0:01:42.3]} 17... exf5 {[%clk 0:01:45.7]}
18. Ng3 {[%clk 0:01:42.9]} 18... g6 {[%clk 0:01:34.6]} 19. d5 {[%clk 0:01:31.4]}
19... cxd5 {[%clk 0:01:25.6]} 20. Bxd5 {[%clk 0:01:32.3]} 20... Nb6 {[%clk
0:01:21.3]} 21. Qb5+ {[%clk 0:01:31.6]} 21... Qd7 {[%clk 0:01:14.1]} 22. Qxd7+
{[%clk 0:01:27.9]} 22... Nxd7 {[%clk 0:01:15]} 23. f4 {[%clk 0:01:23.6]} 23...
Rb8 {[%clk 0:01:03.5]} 24. Rd1 {[%clk 0:01:23.1]} 24... Nb6 {[%clk 0:01:02.4]}
25. Bb3 {[%clk 0:01:21.9]} 25... Rh8 {[%clk 0:00:47.6]} 26. Ke2 {[%clk
0:01:22.1]} 26... Kf8 {[%clk 0:00:47.3]} 27. Rc1 {[%clk 0:01:16.3]} 27... h4
{[%clk 0:00:37.3]} 28. Rc7 {[%clk 0:01:09.4]} 28... Rc8 {[%clk 0:00:37.1]} 29.
Rxb7 {[%clk 0:01:05.6]} 29... Rh7 {[%clk 0:00:19]} 30. Nf1 {[%clk 0:01:00.2]}
30... Bc5 {[%clk 0:00:17.1]} 31. Ne3 {[%clk 0:00:56.7]} 31... a5 {[%clk
0:00:17]} 32. Rc1 {[%clk 0:00:54.3]} 32... Bxe3 {[%clk 0:00:16.2]} 33. Rxc8+
{[%clk 0:00:49]} 33... Nxc8 {[%clk 0:00:17.1]} 34. Kxe3 {[%clk 0:00:47.6]} 34...
Ne7 {[%clk 0:00:17.6]} 35. Ra7 {[%clk 0:00:40.9]} 35... h3 {[%clk 0:00:17.9]}
36. gxh3 {[%clk 0:00:40.1]} 36... Rxh3+ {[%clk 0:00:18.8]} 37. Kd2 {[%clk
0:00:36.8]} 37... Rh4 {[%clk 0:00:19.3]} 38. Ke3 {[%clk 0:00:30.3]} 38... Rh3+
{[%clk 0:00:19.6]} 39. Kf2 {[%clk 0:00:30.3]} 39... Rh4 {[%clk 0:00:20.5]} 40.
Kg3 {[%clk 0:00:30.4]} 40... Rg4+ {[%clk 0:00:21.1]} 41. Kf3 {[%clk 0:00:30.9]}
41... Rh4 {[%clk 0:00:16.7]} 42. Rxa5 {[%clk 0:00:30.8]} 42... Rh2 {[%clk
0:00:17.1]} 43. Ra8+ {[%clk 0:00:29.6]} 43... Kg7 {[%clk 0:00:17.5]} 44. Ra7
{[%clk 0:00:30.3]} 44... Kf8 {[%clk 0:00:18]} 45. Rb7 {[%clk 0:00:15.5]} 45...
Rxb2 {[%clk 0:00:17.7]} 46. a4 {[%clk 0:00:16.2]} 46... Rb1 {[%clk 0:00:17.3]}
47. Ke3 {[%clk 0:00:14.2]} 47... Ra1 {[%clk 0:00:17.8]} 48. Kd3 {[%clk
0:00:13.6]} 48... Rf1 {[%clk 0:00:16.3]} 49. Rb4 {[%clk 0:00:12.4]} 49... Nc6
{[%clk 0:00:14.9]} 50. Rb7 {[%clk 0:00:12.7]} 50... Rxf4 {[%clk 0:00:13.4]} 51.
Rxf7+ {[%clk 0:00:12.6]} 51... Ke8 {[%clk 0:00:14]} 52. Rc7 {[%clk 0:00:06.7]}
52... Nxe5+ {[%clk 0:00:13.5]} 53. Kc3 {[%clk 0:00:07.5]} 53... Rf3+ {[%clk
0:00:13.9]} 54. Kb4 {[%clk 0:00:07.9]} 54... g5 {[%clk 0:00:14.4]} 55. a5 {[%clk
0:00:08.4]} 55... Rf4+ {[%clk 0:00:14.2]} 56. Kb5 {[%clk 0:00:08.8]} 56... Rf3
{[%clk 0:00:14.3]} 57. Ba4 {[%clk 0:00:09]} 57... Kd8 {[%clk 0:00:13.5]} 58. Rg7
{[%clk 0:00:06.7]} 58... g4 {[%clk 0:00:13.5]} 59. a6 {[%clk 0:00:07]} 59... Rf1
{[%clk 0:00:07.8]} 60. a7 {[%clk 0:00:06.9]} 60... Rb1+ {[%clk 0:00:08.2]} 61.
Ka6 {[%clk 0:00:07.2]} 1-0

[Event "Late-Titled-Tuesday-Blitz-March-05-2024"]
[Site "Chess.com"]
[Date "2024.03.05"]
[Round "1"]
[White "traack"]
[Black "NikolaGry"]
[Result "1-0"]
[WhiteElo "2445"]
[BlackElo "2711"]
[TimeControl "180+1"]
[EndTime "14:08:18 PST"]
[Termination "traack won on time"]

1. e4 {[%clk 0:03:00.7]} 1... f6 {[%clk 0:02:59.6]} 2. d4 {[%clk 0:02:58.4]}
2... c6 {[%clk 0:02:58.6]} 3. Nf3 {[%clk 0:02:55.1]} 3... Na6 {[%clk 0:02:56.5]}
4. Bd3 {[%clk 0:02:45.7]} 4... d6 {[%clk 0:02:50.7]} 5. O-O {[%clk 0:02:44.6]}
5... g6 {[%clk 0:02:41.3]} 6. b3 {[%clk 0:02:42]} 6... Bg7 {[%clk 0:02:35.8]} 7.
Bb2 {[%clk 0:02:41.9]} 7... Nh6 {[%clk 0:02:35.4]} 8. Nbd2 {[%clk 0:02:41]} 8...
Nf7 {[%clk 0:02:34.3]} 9. Re1 {[%clk 0:02:40]} 9... e5 {[%clk 0:02:29.3]} 10. c4
{[%clk 0:02:38.9]} 10... O-O {[%clk 0:02:27.6]} 11. h3 {[%clk 0:02:34]} 11...
Nc7 {[%clk 0:02:23.5]} 12. d5 {[%clk 0:02:27.8]} 12... c5 {[%clk 0:02:16.7]} 13.
a3 {[%clk 0:02:23.6]} 13... f5 {[%clk 0:02:11.3]} 14. b4 {[%clk 0:02:23]} 14...
b6 {[%clk 0:02:11]} 15. Bf1 {[%clk 0:02:10.9]} 15... Ng5 {[%clk 0:02:01.4]} 16.
Nxg5 {[%clk 0:02:02.7]} 16... Qxg5 {[%clk 0:01:59.8]} 17. Nf3 {[%clk 0:01:54]}
17... Qd8 {[%clk 0:01:43.4]} 18. exf5 {[%clk 0:01:51.1]} 18... gxf5 {[%clk
0:01:41.7]} 19. Ra2 {[%clk 0:01:45.5]} 19... Bd7 {[%clk 0:01:30.5]} 20. Ba1
{[%clk 0:01:44.2]} 20... Re8 {[%clk 0:01:03.8]} 21. Qc1 {[%clk 0:01:42.4]} 21...
Qf6 {[%clk 0:00:58.5]} 22. Rae2 {[%clk 0:01:26.5]} 22... Qg6 {[%clk 0:00:53.6]}
23. Nh4 {[%clk 0:01:23.6]} 23... Qh5 {[%clk 0:00:51.6]} 24. g3 {[%clk
0:01:20.8]} 24... Bf6 {[%clk 0:00:37.9]} 25. Kh2 {[%clk 0:00:49.5]} 25... Rf8
{[%clk 0:00:30.3]} 26. f4 {[%clk 0:00:47.9]} 26... e4 {[%clk 0:00:25.2]} 27.
Bxf6 {[%clk 0:00:45]} 27... Rxf6 {[%clk 0:00:25]} 28. Ng2 {[%clk 0:00:45.5]}
28... Rg6 {[%clk 0:00:20.6]} 29. Ne3 {[%clk 0:00:45.1]} 29... Rf8 {[%clk
0:00:19.2]} 30. Rg2 {[%clk 0:00:40.2]} 30... Ne8 {[%clk 0:00:18.4]} 31. Qd1
{[%clk 0:00:40.4]} 31... Qxh3+ {[%clk 0:00:16]} 32. Kg1 {[%clk 0:00:37.6]} 32...
Rxg3 {[%clk 0:00:15.1]} 33. Re2 {[%clk 0:00:30]} 33... Ng7 {[%clk 0:00:11.6]}
34. Qe1 {[%clk 0:00:26.7]} 34... Rxg2+ {[%clk 0:00:10.9]} 35. Rxg2 {[%clk
0:00:27.6]} 35... Qh6 {[%clk 0:00:10.8]} 36. Rg5 {[%clk 0:00:26.9]} 36... Rf6
{[%clk 0:00:10.4]} 37. Qg3 {[%clk 0:00:26.8]} 37... Rg6 {[%clk 0:00:09.9]} 38.
Bh3 {[%clk 0:00:27.3]} 38... Nh5 {[%clk 0:00:07]} 39. Qh4 {[%clk 0:00:21.4]}
39... Rxg5+ {[%clk 0:00:06.3]} 40. fxg5 {[%clk 0:00:21.3]} 40... Qg6 {[%clk
0:00:06.6]} 41. Bxf5 {[%clk 0:00:19.7]} 41... Bxf5 {[%clk 0:00:06.2]} 42. Nxf5
{[%clk 0:00:20.2]} 42... Qxf5 {[%clk 0:00:05.9]} 43. Qxh5 {[%clk 0:00:20.7]}
43... Qe5 {[%clk 0:00:04.5]} 44. Kf2 {[%clk 0:00:18.2]} 44... Qf4+ {[%clk
0:00:04.3]} 45. Ke2 {[%clk 0:00:18.3]} 45... Qf7 {[%clk 0:00:03.9]} 46. Qh6
{[%clk 0:00:17.8]} 46... Qf3+ {[%clk 0:00:03.3]} 47. Ke1 {[%clk 0:00:17.6]}
47... Qe3+ {[%clk 0:00:02]} 48. Kf1 {[%clk 0:00:17.5]} 48... Qf3+ {[%clk
0:00:02.2]} 49. Ke1 {[%clk 0:00:18]} 49... Qe3+ {[%clk 0:00:02.4]} 50. Kf1
{[%clk 0:00:15.5]} 50... Qf4+ {[%clk 0:00:02.6]} 51. Ke2 {[%clk 0:00:15.6]}
51... Qe5 {[%clk 0:00:02.8]} 52. g6 {[%clk 0:00:13.3]} 52... hxg6 {[%clk
0:00:02.9]} 53. Qxg6+ {[%clk 0:00:14.2]} 53... Kf8 {[%clk 0:00:03.2]} 54. Qh6+
{[%clk 0:00:14.5]} 54... Ke8 {[%clk 0:00:02.6]} 55. Qg6+ {[%clk 0:00:14.8]}
55... Kd7 {[%clk 0:00:02.6]} 56. Qf7+ {[%clk 0:00:15]} 56... Qe7 {[%clk
0:00:02.8]} 57. Qf5+ {[%clk 0:00:15.4]} 57... Kc7 {[%clk 0:00:02.8]} 58. Qg6
{[%clk 0:00:15.1]} 58... Kb7 {[%clk 0:00:01.5]} 59. Ke3 {[%clk 0:00:15]} 59...
cxb4 {[%clk 0:00:01.7]} 60. axb4 {[%clk 0:00:15.1]} 1-0

[Event "Late-Titled-Tuesday-Blitz-March-05-2024"]
[Site "Chess.com"]
[Date "2024.03.05"]
[Round "1"]
[White "Kgutierrez95"]
[Black "averageFM"]
[Result "0-1"]
[WhiteElo "2217"]
[BlackElo "2584"]
[TimeControl "180+1"]
[EndTime "14:08:31 PST"]
[Termination "averageFM won by checkmate"]

1. e4 {[%clk 0:02:57]} 1... c5 {[%clk 0:02:58.9]} 2. Nf3 {[%clk 0:02:53.5]} 2...
e6 {[%clk 0:02:58.2]} 3. d4 {[%clk 0:02:48.8]} 3... cxd4 {[%clk 0:02:59.1]} 4.
Nxd4 {[%clk 0:02:49]} 4... Nc6 {[%clk 0:02:58.4]} 5. Nc3 {[%clk 0:02:48.1]} 5...
Qc7 {[%clk 0:02:58.7]} 6. Ndb5 {[%clk 0:02:47.4]} 6... Qb8 {[%clk 0:02:57.8]} 7.
Be2 {[%clk 0:02:45.7]} 7... a6 {[%clk 0:02:45.8]} 8. Nd4 {[%clk 0:02:44.8]} 8...
Nf6 {[%clk 0:02:45]} 9. Bg5 {[%clk 0:02:42.5]} 9... Qe5 {[%clk 0:02:34.9]} 10.
Bxf6 {[%clk 0:02:36.6]} 10... gxf6 {[%clk 0:02:29.9]} 11. Nxc6 {[%clk
0:02:35.1]} 11... bxc6 {[%clk 0:02:29.4]} 12. Qd2 {[%clk 0:02:34.4]} 12... Rb8
{[%clk 0:02:26.6]} 13. Rb1 {[%clk 0:02:21.9]} 13... Rg8 {[%clk 0:01:54.9]} 14.
O-O {[%clk 0:02:13.3]} 14... Qg5 {[%clk 0:01:54.1]} 15. Qxg5 {[%clk 0:02:10.2]}
15... fxg5 {[%clk 0:01:55]} 16. Bd3 {[%clk 0:01:44.4]} 16... Bg7 {[%clk
0:01:51.7]} 17. Na4 {[%clk 0:01:36.3]} 17... Bd4 {[%clk 0:01:46.1]} 18. c3
{[%clk 0:01:32.9]} 18... Ba7 {[%clk 0:01:43.9]} 19. b3 {[%clk 0:01:26.5]} 19...
d6 {[%clk 0:01:40.5]} 20. Nb2 {[%clk 0:01:25.6]} 20... d5 {[%clk 0:01:30.2]} 21.
exd5 {[%clk 0:01:23]} 21... cxd5 {[%clk 0:01:29]} 22. c4 {[%clk 0:01:19.2]}
22... Bb7 {[%clk 0:01:24.3]} 23. Bxh7 {[%clk 0:01:15.8]} 23... Rh8 {[%clk
0:01:22.3]} 24. Bd3 {[%clk 0:01:14.5]} 24... f5 {[%clk 0:01:17.9]} 25. cxd5
{[%clk 0:01:11.9]} 25... Bxd5 {[%clk 0:01:16.6]} 26. Bxa6 {[%clk 0:01:11]} 26...
Kf7 {[%clk 0:01:16.3]} 27. Bc4 {[%clk 0:01:10.5]} 27... Be4 {[%clk 0:01:13.8]}
28. Rbc1 {[%clk 0:01:05.1]} 28... Bc5 {[%clk 0:00:50.7]} 29. Nd3 {[%clk
0:01:03.5]} 29... Bd6 {[%clk 0:00:49.2]} 30. f3 {[%clk 0:00:58.4]} 30... Bxh2+
{[%clk 0:00:39.1]} 31. Kf2 {[%clk 0:00:57.8]} 31... Bb7 {[%clk 0:00:29.1]} 32.
Ne5+ {[%clk 0:00:55.9]} 32... Bxe5 {[%clk 0:00:28.2]} 33. Rfe1 {[%clk
0:00:53.5]} 33... Bd4+ {[%clk 0:00:24.9]} 34. Ke2 {[%clk 0:00:53.7]} 34... Kf6
{[%clk 0:00:24.5]} 35. Kd3 {[%clk 0:00:53.5]} 35... e5 {[%clk 0:00:23.6]} 36. b4
{[%clk 0:00:49.6]} 36... Rbd8 {[%clk 0:00:22.7]} 37. Kc2 {[%clk 0:00:48.7]}
37... e4 {[%clk 0:00:19.4]} 38. fxe4 {[%clk 0:00:47]} 38... Bxe4+ {[%clk
0:00:19]} 39. Kb3 {[%clk 0:00:47.4]} 39... Rc8 {[%clk 0:00:16.2]} 40. Rcd1
{[%clk 0:00:30]} 40... Be5 {[%clk 0:00:13.9]} 41. Rd2 {[%clk 0:00:25.6]} 41...
Rh2 {[%clk 0:00:08.8]} 42. Ree2 {[%clk 0:00:24.9]} 42... Rh1 {[%clk 0:00:07.6]}
43. Bd5 {[%clk 0:00:20.2]} 43... Rb1+ {[%clk 0:00:07.5]} 44. Ka4 {[%clk
0:00:20.8]} 44... Bxd5 {[%clk 0:00:06.4]} 45. Rxd5 {[%clk 0:00:20.4]} 45... Ra8+
{[%clk 0:00:06.6]} 46. Ra5 {[%clk 0:00:19.3]} 46... Rxa5+ {[%clk 0:00:06.8]} 47.
Kxa5 {[%clk 0:00:20.2]} 47... f4 {[%clk 0:00:06.4]} 48. b5 {[%clk 0:00:19.6]}
48... g4 {[%clk 0:00:06.6]} 49. Ka6 {[%clk 0:00:18.9]} 49... Kf5 {[%clk
0:00:06.5]} 50. b6 {[%clk 0:00:16.3]} 50... Rb2 {[%clk 0:00:05.8]} 51. Rxb2
{[%clk 0:00:08.1]} 51... Bxb2 {[%clk 0:00:05.9]} 52. b7 {[%clk 0:00:07.4]} 52...
Be5 {[%clk 0:00:05.8]} 53. a4 {[%clk 0:00:08.3]} 53... f3 {[%clk 0:00:05.9]} 54.
a5 {[%clk 0:00:09.2]} 54... f2 {[%clk 0:00:06.2]} 55. Kb6 {[%clk 0:00:09.4]}
55... f1=Q {[%clk 0:00:06.1]} 56. a6 {[%clk 0:00:10.3]} 56... Qf2+ {[%clk
0:00:06]} 57. Kc6 {[%clk 0:00:10.4]} 57... Qa7 {[%clk 0:00:05.8]} 58. Kd7 {[%clk
0:00:10]} 58... Qxa6 {[%clk 0:00:05.4]} 59. g3 {[%clk 0:00:09.8]} 59... Qxb7+
{[%clk 0:00:05.4]} 60. Ke8 {[%clk 0:00:10.1]} 60... Ke6 {[%clk 0:00:05.2]} 61.
Kf8 {[%clk 0:00:09.6]} 61... Qf7# {[%clk 0:00:05]} 0-1

[Event "Late-Titled-Tuesday-Blitz-March-05-2024"]
[Site "Chess.com"]
[Date "2024.03.05"]
[Round "1"]
[White "KNVB"]
[Black "Inepton_Fermion"]
[Result "1-0"]
[WhiteElo "2805"]
[BlackElo "2472"]
[TimeControl "180+1"]
[EndTime "14:08:32 PST"]
[Termination "KNVB won on time"]

1. d4 {[%clk 0:03:00.9]} 1... Nf6 {[%clk 0:02:59.7]} 2. Bf4 {[%clk 0:03:00.2]}
2... e6 {[%clk 0:02:59.4]} 3. e3 {[%clk 0:02:58.4]} 3... h6 {[%clk 0:02:58.7]}
4. Nf3 {[%clk 0:02:56.5]} 4... Nh5 {[%clk 0:02:58.6]} 5. Nc3 {[%clk 0:02:55.9]}
5... d6 {[%clk 0:02:40.1]} 6. Qd2 {[%clk 0:02:53]} 6... Nd7 {[%clk 0:02:37.6]}
7. O-O-O {[%clk 0:02:47.2]} 7... g6 {[%clk 0:02:34.9]} 8. h4 {[%clk 0:02:43.2]}
8... Nxf4 {[%clk 0:02:31.1]} 9. exf4 {[%clk 0:02:44.1]} 9... Bg7 {[%clk
0:02:31.1]} 10. h5 {[%clk 0:02:42.8]} 10... gxh5 {[%clk 0:02:12.7]} 11. f5
{[%clk 0:01:59.1]} 11... e5 {[%clk 0:01:49.7]} 12. Rxh5 {[%clk 0:01:29.5]} 12...
Nf6 {[%clk 0:01:49.2]} 13. Rh4 {[%clk 0:01:23.9]} 13... Bxf5 {[%clk 0:01:02.5]}
14. dxe5 {[%clk 0:01:08]} 14... dxe5 {[%clk 0:01:03.4]} 15. Qxd8+ {[%clk
0:00:44.5]} 15... Rxd8 {[%clk 0:01:03.5]} 16. Rxd8+ {[%clk 0:00:45.4]} 16...
Kxd8 {[%clk 0:01:04.4]} 17. Nxe5 {[%clk 0:00:46.3]} 17... Ke7 {[%clk 0:00:43.3]}
18. Bc4 {[%clk 0:00:29.9]} 18... Rf8 {[%clk 0:00:33.6]} 19. Rf4 {[%clk
0:00:11.6]} 19... Bh7 {[%clk 0:00:23.4]} 20. a3 {[%clk 0:00:02.1]} 20... c6
{[%clk 0:00:21.7]} 21. Ng4 {[%clk 0:00:02.2]} 21... h5 {[%clk 0:00:09.8]} 22.
Nxf6 {[%clk 0:00:02.1]} 22... Bh6 {[%clk 0:00:10.5]} 23. Nxh5 {[%clk 0:00:01.8]}
23... Bg6 {[%clk 0:00:07.7]} 24. Bd3 {[%clk 0:00:01.1]} 24... Bxh5 {[%clk
0:00:07.5]} 25. g3 {[%clk 0:00:01.8]} 25... Rh8 {[%clk 0:00:04.8]} 26. Kd2
{[%clk 0:00:01.8]} 26... Bxf4+ {[%clk 0:00:05.3]} 27. gxf4 {[%clk 0:00:02.7]}
27... Bg6 {[%clk 0:00:06.2]} 28. f5 {[%clk 0:00:02.8]} 28... Bh5 {[%clk
0:00:03.9]} 29. Ne4 {[%clk 0:00:03.4]} 29... f6 {[%clk 0:00:03.8]} 30. Ke3
{[%clk 0:00:03.3]} 30... Bd1 {[%clk 0:00:03.4]} 31. Kd2 {[%clk 0:00:03.1]} 31...
Bg4 {[%clk 0:00:03.2]} 32. Nc5 {[%clk 0:00:02.8]} 32... b6 {[%clk 0:00:02.8]}
33. Ne6 {[%clk 0:00:02.7]} 33... c5 {[%clk 0:00:02.6]} 34. Ke3 {[%clk
0:00:02.7]} 34... Rh3+ {[%clk 0:00:02.5]} 35. Kf4 {[%clk 0:00:02.7]} 35... Bd1
{[%clk 0:00:03.1]} 36. Be4 {[%clk 0:00:02.6]} 36... Rh2 {[%clk 0:00:02.4]} 37.
Kg3 {[%clk 0:00:02.3]} 37... Rh8 {[%clk 0:00:03.1]} 38. Nc7 {[%clk 0:00:02.5]}
38... Rg8+ {[%clk 0:00:03.1]} 39. Kf4 {[%clk 0:00:02.8]} 39... Rd8 {[%clk
0:00:03]} 40. Nd5+ {[%clk 0:00:02.5]} 40... Kf7 {[%clk 0:00:03.3]} 41. c3 {[%clk
0:00:01.8]} 41... Bb3 {[%clk 0:00:02.8]} 42. Nc7 {[%clk 0:00:01.4]} 42... Rd2
{[%clk 0:00:03]} 43. Nb5 {[%clk 0:00:01.2]} 43... Rxf2+ {[%clk 0:00:03]} 44. Ke3
{[%clk 0:00:01.9]} 44... Rxb2 {[%clk 0:00:03.6]} 45. Nxa7 {[%clk 0:00:02.5]}
45... Bc4 {[%clk 0:00:02.6]} 46. Nc8 {[%clk 0:00:02.6]} 46... Kf8 {[%clk
0:00:01.7]} 47. Nd6 {[%clk 0:00:02.3]} 47... Bf7 {[%clk 0:00:02.1]} 48. Kd3
{[%clk 0:00:01.8]} 48... Rb3 {[%clk 0:00:01.9]} 49. a4 {[%clk 0:00:02.1]} 49...
Ra3 {[%clk 0:00:02.1]} 50. Bc6 {[%clk 0:00:01.8]} 50... Bb3 {[%clk 0:00:02]} 51.
Nc8 {[%clk 0:00:01.3]} 51... Bxa4 {[%clk 0:00:01.4]} 52. Bxa4 {[%clk 0:00:01.6]}
52... Rxa4 {[%clk 0:00:02.3]} 53. Nxb6 {[%clk 0:00:02.4]} 53... Ra1 {[%clk
0:00:02.7]} 54. Nd7+ {[%clk 0:00:02.4]} 54... Ke7 {[%clk 0:00:03.1]} 55. Nxc5
{[%clk 0:00:03.3]} 55... Rd1+ {[%clk 0:00:03.4]} 56. Kc4 {[%clk 0:00:03.4]}
56... Rg1 {[%clk 0:00:03.8]} 57. Kd5 {[%clk 0:00:03.2]} 57... Rd1+ {[%clk
0:00:03.7]} 58. Kc6 {[%clk 0:00:03.6]} 58... Rf1 {[%clk 0:00:04.1]} 59. c4
{[%clk 0:00:01.3]} 59... Rxf5 {[%clk 0:00:04.6]} 60. Nb7 {[%clk 0:00:01.7]}
60... Rf1 {[%clk 0:00:03.7]} 61. c5 {[%clk 0:00:01.9]} 61... f5 {[%clk
0:00:04.1]} 62. Nd6 {[%clk 0:00:02.6]} 62... f4 {[%clk 0:00:04.3]} 63. Kd5
{[%clk 0:00:03.2]} 63... Kf6 {[%clk 0:00:03.5]} 64. c6 {[%clk 0:00:01.9]} 64...
Kg5 {[%clk 0:00:02.2]} 65. c7 {[%clk 0:00:02]} 65... Rd1+ {[%clk 0:00:01.7]} 66.
Kc5 {[%clk 0:00:01.7]} 66... Rc1+ {[%clk 0:00:01.9]} 67. Nc4 {[%clk 0:00:02.4]}
67... f3 {[%clk 0:00:01.1]} 68. c8=Q {[%clk 0:00:02.8]} 1-0

[Event "Late-Titled-Tuesday-Blitz-March-05-2024"]
[Site "Chess.com"]
[Date "2024.03.05"]
[Round "1"]
[White "TheBigBoss04"]
[Black "giomar27"]
[Result "1/2-1/2"]
[WhiteElo "2680"]
[BlackElo "2408"]
[TimeControl "180+1"]
[EndTime "14:08:43 PST"]
[Termination "Game drawn by repetition"]

1. e4 {[%clk 0:02:55.5]} 1... e5 {[%clk 0:02:58.9]} 2. Nf3 {[%clk 0:02:53.3]}
2... Nc6 {[%clk 0:02:59.4]} 3. Nc3 {[%clk 0:02:38.2]} 3... Nf6 {[%clk
0:02:59.1]} 4. a4 {[%clk 0:02:37.1]} 4... a6 {[%clk 0:02:52.8]} 5. d4 {[%clk
0:02:32.4]} 5... exd4 {[%clk 0:02:52.3]} 6. Nxd4 {[%clk 0:02:33.3]} 6... Bb4
{[%clk 0:02:52.3]} 7. Nxc6 {[%clk 0:02:31.9]} 7... bxc6 {[%clk 0:02:52.5]} 8.
Bd3 {[%clk 0:02:31.7]} 8... d5 {[%clk 0:02:52.6]} 9. exd5 {[%clk 0:02:31.6]}
9... O-O {[%clk 0:02:52.8]} 10. O-O {[%clk 0:02:31.6]} 10... cxd5 {[%clk
0:02:52.9]} 11. h3 {[%clk 0:02:21.4]} 11... Bb7 {[%clk 0:02:49.4]} 12. Bg5
{[%clk 0:02:11.9]} 12... Be7 {[%clk 0:02:45.6]} 13. Re1 {[%clk 0:02:09.5]} 13...
c5 {[%clk 0:02:44.8]} 14. Qf3 {[%clk 0:02:00.1]} 14... Rb8 {[%clk 0:02:34.3]}
15. Qf5 {[%clk 0:01:51.1]} 15... g6 {[%clk 0:02:17.8]} 16. Qe5 {[%clk
0:01:50.9]} 16... Re8 {[%clk 0:02:12.7]} 17. Bf4 {[%clk 0:01:25.8]} 17... Nd7
{[%clk 0:01:58.5]} 18. Qc7 {[%clk 0:01:02.8]} 18... Qxc7 {[%clk 0:01:50.3]} 19.
Bxc7 {[%clk 0:01:03.7]} 19... Rbc8 {[%clk 0:01:50.9]} 20. Bf4 {[%clk 0:00:58.7]}
20... Bf6 {[%clk 0:01:47.3]} 21. Bf1 {[%clk 0:00:55.3]} 21... d4 {[%clk
0:01:37.9]} 22. Ne2 {[%clk 0:00:54.5]} 22... Ne5 {[%clk 0:01:35.9]} 23. b3
{[%clk 0:00:52.7]} 23... d3 {[%clk 0:01:32.9]} 24. Nc3 {[%clk 0:00:48.1]} 24...
Nf3+ {[%clk 0:01:25.8]} 25. gxf3 {[%clk 0:00:47.7]} 25... Bxc3 {[%clk
0:01:22.3]} 26. Rxe8+ {[%clk 0:00:44.9]} 26... Rxe8 {[%clk 0:01:23.2]} 27. Rd1
{[%clk 0:00:41.8]} 27... d2 {[%clk 0:00:59.1]} 28. Rxd2 {[%clk 0:00:24.8]} 28...
Bxd2 {[%clk 0:00:57.8]} 29. Bxd2 {[%clk 0:00:25.7]} 29... Rd8 {[%clk 0:00:53.4]}
30. Be3 {[%clk 0:00:23.3]} 30... Rd1 {[%clk 0:00:48.5]} 31. Kg2 {[%clk
0:00:12.4]} 31... Rd5 {[%clk 0:00:41.3]} 32. Bc4 {[%clk 0:00:09.6]} 32... Rf5
{[%clk 0:00:40.9]} 33. Be2 {[%clk 0:00:09.2]} 33... Kf8 {[%clk 0:00:39.3]} 34.
Kg3 {[%clk 0:00:08.5]} 34... Ke7 {[%clk 0:00:36.9]} 35. f4 {[%clk 0:00:08.6]}
35... h5 {[%clk 0:00:31]} 36. Bd3 {[%clk 0:00:05.9]} 36... Rd5 {[%clk 0:00:22]}
37. Be4 {[%clk 0:00:06]} 37... Rd7 {[%clk 0:00:21.5]} 38. Bxc5+ {[%clk
0:00:06.2]} 38... Ke6 {[%clk 0:00:21.5]} 39. Bd3 {[%clk 0:00:05.8]} 39... Rc7
{[%clk 0:00:15.2]} 40. Bd4 {[%clk 0:00:04.3]} 40... f5 {[%clk 0:00:14.9]} 41. h4
{[%clk 0:00:02.8]} 41... Rd7 {[%clk 0:00:09.9]} 42. Be5 {[%clk 0:00:02]} 42...
Be4 {[%clk 0:00:08.5]} 43. Bc4+ {[%clk 0:00:01.1]} 43... Bd5 {[%clk 0:00:08]}
44. Bxa6 {[%clk 0:00:01.8]} 44... Be4 {[%clk 0:00:07.7]} 45. Bc4+ {[%clk
0:00:02.4]} 45... Bd5 {[%clk 0:00:08.1]} 46. Bb5 {[%clk 0:00:01.8]} 46... Rb7
{[%clk 0:00:07.4]} 47. c4 {[%clk 0:00:02.4]} 47... Be4 {[%clk 0:00:07.8]} 48. a5
{[%clk 0:00:02.9]} 48... Ra7 {[%clk 0:00:07.3]} 49. f3 {[%clk 0:00:02.8]} 49...
Bb7 {[%clk 0:00:07]} 50. b4 {[%clk 0:00:03.1]} 50... Ba6 {[%clk 0:00:06.5]} 51.
Bxa6 {[%clk 0:00:03.2]} 51... Rxa6 {[%clk 0:00:07.4]} 52. Bc7 {[%clk 0:00:02.9]}
52... Rc6 {[%clk 0:00:07.6]} 53. Bb6 {[%clk 0:00:02.2]} 53... Rxc4 {[%clk
0:00:07.7]} 54. b5 {[%clk 0:00:01.7]} 54... Rc8 {[%clk 0:00:07.6]} 55. a6 {[%clk
0:00:02.5]} 55... Kd5 {[%clk 0:00:07.2]} 56. Bf2 {[%clk 0:00:01.8]} 56... Ra8
{[%clk 0:00:04.8]} 57. a7 {[%clk 0:00:02.2]} 57... Kd6 {[%clk 0:00:03.1]} 58. b6
{[%clk 0:00:02.1]} 58... Kc6 {[%clk 0:00:03.3]} 59. Bd4 {[%clk 0:00:02.3]} 59...
Kb7 {[%clk 0:00:04.2]} 60. Kf2 {[%clk 0:00:02.6]} 60... Re8 {[%clk 0:00:04]} 61.
Bc5 {[%clk 0:00:01.9]} 61... Rc8 {[%clk 0:00:04.2]} 62. Be3 {[%clk 0:00:02.2]}
62... Rc2+ {[%clk 0:00:04.2]} 63. Ke1 {[%clk 0:00:02.1]} 63... Rh2 {[%clk
0:00:04]} 64. Bf2 {[%clk 0:00:02.5]} 64... Rh1+ {[%clk 0:00:04.3]} 65. Ke2
{[%clk 0:00:02.6]} 65... Rb1 {[%clk 0:00:04]} 66. Kd3 {[%clk 0:00:02.6]} 66...
Rb3+ {[%clk 0:00:04.1]} 67. Ke2 {[%clk 0:00:02.6]} 67... Rb2+ {[%clk 0:00:04.4]}
68. Ke1 {[%clk 0:00:03]} 68... Rb1+ {[%clk 0:00:04.8]} 69. Ke2 {[%clk
0:00:03.6]} 69... Rb2+ {[%clk 0:00:05.3]} 70. Kf1 {[%clk 0:00:03.6]} 70... Rb3
{[%clk 0:00:05.7]} 71. Kg2 {[%clk 0:00:03]} 71... Rb2 {[%clk 0:00:06.2]} 72. Kg1
{[%clk 0:00:03.4]} 72... Rb1+ {[%clk 0:00:06.7]} 73. Kg2 {[%clk 0:00:03.4]}
73... Rb2 {[%clk 0:00:07.4]} 74. Kf1 {[%clk 0:00:03.9]} 74... Rb1+ {[%clk
0:00:07.9]} 75. Ke2 {[%clk 0:00:03.5]} 75... Rb2+ {[%clk 0:00:08.4]} 1/2-1/2